[Event "*** Titled Tuesday Blitz"]
[Site "Chess.com"]
[Date "2020.05.19"]
[Round "9"]
[White "Mbneu"]
[Black "TurboSteen"]
[Result "0-1"]
[WhiteElo "2211"]
[BlackElo "2006"]
[TimeControl "180+1"]
[EndTime "13:46:11 PDT"]
[Termination "TurboSteen won by resignation"]

1. d4 {[%clk 0:02:55.4]} 1... Nf6 {[%clk 0:02:58.6]} 2. c4 {[%clk 0:02:55.3]}
2... c5 {[%clk 0:02:58.5]} 3. d5 {[%clk 0:02:55]} 3... b5 {[%clk 0:02:58.4]} 4.
a4 {[%clk 0:02:55]} 4... b4 {[%clk 0:02:22.5]} 5. g3 {[%clk 0:02:53.5]} 5... g6
{[%clk 0:02:19.7]} 6. b3 {[%clk 0:02:52.9]} 6... Bg7 {[%clk 0:02:16.4]} 7. Bb2
{[%clk 0:02:53]} 7... d6 {[%clk 0:02:16]} 8. Bg2 {[%clk 0:02:53.2]} 8... Bb7
{[%clk 0:02:06.8]} 9. e4 {[%clk 0:02:53.9]} 9... e6 {[%clk 0:02:04.7]} 10. Ne2
{[%clk 0:02:19.5]} 10... exd5 {[%clk 0:01:46.4]} 11. exd5 {[%clk 0:02:19.1]}
11... O-O {[%clk 0:01:44.3]} 12. O-O {[%clk 0:02:18.1]} 12... Nbd7 {[%clk
0:01:42.2]} 13. Nf4 {[%clk 0:02:15.4]} 13... Ne5 {[%clk 0:01:39.7]} 14. Bxe5
{[%clk 0:02:14.2]} 14... dxe5 {[%clk 0:01:38.1]} 15. Nd3 {[%clk 0:02:13.2]}
15... e4 {[%clk 0:01:37.2]} 16. Nxc5 {[%clk 0:02:08.6]} 16... Bc8 {[%clk
0:01:26.1]} 17. Ra2 {[%clk 0:02:03.8]} 17... Bf5 {[%clk 0:01:24.5]} 18. Re1
{[%clk 0:02:02.6]} 18... Re8 {[%clk 0:01:22.3]} 19. Nd2 {[%clk 0:01:36.8]} 19...
Bg4 {[%clk 0:01:08.4]} 20. Qc2 {[%clk 0:01:30.6]} 20... Qb6 {[%clk 0:01:03.9]}
21. Ncxe4 {[%clk 0:01:26.2]} 21... Nxe4 {[%clk 0:00:54.6]} 22. Nxe4 {[%clk
0:01:24.5]} 22... f5 {[%clk 0:00:51.6]} 23. h3 {[%clk 0:00:55.4]} 23... Bh5
{[%clk 0:00:43.9]} 24. g4 {[%clk 0:00:33.7]} 24... fxe4 {[%clk 0:00:41.5]} 25.
gxh5 {[%clk 0:00:32.2]} 25... e3 {[%clk 0:00:41.6]} 26. fxe3 {[%clk 0:00:27.4]}
26... Rxe3 {[%clk 0:00:39.1]} 27. Rxe3 {[%clk 0:00:27.3]} 27... Qxe3+ {[%clk
0:00:39.3]} 28. Qf2 {[%clk 0:00:21.1]} 28... Qxb3 {[%clk 0:00:36.9]} 29. Re2
{[%clk 0:00:17.1]} 29... Qxc4 {[%clk 0:00:29.6]} 30. Qg3 {[%clk 0:00:14]} 30...
Qxe2 {[%clk 0:00:26.2]} 0-1

[Event "*** Titled Tuesday Blitz"]
[Site "Chess.com"]
[Date "2020.05.19"]
[Round "9"]
[White "IMTominho"]
[Black "Lagmantr"]
[Result "0-1"]
[WhiteElo "2823"]
[BlackElo "2704"]
[TimeControl "180+1"]
[EndTime "13:46:13 PDT"]
[Termination "Lagmantr won by resignation"]

1. d4 {[%clk 0:03:00.9]} 1... d5 {[%clk 0:02:59.5]} 2. Bg5 {[%clk 0:03:00.2]}
2... g6 {[%clk 0:02:49.7]} 3. Nf3 {[%clk 0:02:58.5]} 3... Bg7 {[%clk 0:02:49.8]}
4. c4 {[%clk 0:02:58.2]} 4... c6 {[%clk 0:02:48.7]} 5. e3 {[%clk 0:02:58]} 5...
Nf6 {[%clk 0:02:48.3]} 6. Nc3 {[%clk 0:02:58.4]} 6... O-O {[%clk 0:02:47.9]} 7.
Be2 {[%clk 0:02:56.8]} 7... a6 {[%clk 0:02:46.2]} 8. O-O {[%clk 0:02:54.5]} 8...
b5 {[%clk 0:02:46.1]} 9. cxd5 {[%clk 0:02:54.9]} 9... cxd5 {[%clk 0:02:46.7]}
10. Ne5 {[%clk 0:02:55.4]} 10... Bb7 {[%clk 0:02:42]} 11. a4 {[%clk 0:02:51.2]}
11... b4 {[%clk 0:02:42]} 12. Na2 {[%clk 0:02:51]} 12... Ne4 {[%clk 0:02:40.3]}
13. Bh4 {[%clk 0:02:49.2]} 13... a5 {[%clk 0:02:38.4]} 14. Nc1 {[%clk
0:02:48.6]} 14... Nd7 {[%clk 0:02:35.7]} 15. Nxd7 {[%clk 0:02:40.3]} 15... Qxd7
{[%clk 0:02:35.5]} 16. Nb3 {[%clk 0:02:40.4]} 16... g5 {[%clk 0:02:31.9]} 17.
Bg3 {[%clk 0:02:38]} 17... Ba6 {[%clk 0:02:12.8]} 18. Bxa6 {[%clk 0:02:29.8]}
18... Rxa6 {[%clk 0:02:13.7]} 19. Qd3 {[%clk 0:02:30.2]} 19... Rh6 {[%clk
0:02:09.6]} 20. Rfc1 {[%clk 0:02:22.7]} 20... Nxg3 {[%clk 0:01:32.6]} 21. hxg3
{[%clk 0:02:21.2]} 21... f5 {[%clk 0:01:24.6]} 22. Nxa5 {[%clk 0:02:13.2]} 22...
f4 {[%clk 0:01:20.7]} 23. exf4 {[%clk 0:02:13]} 23... gxf4 {[%clk 0:01:20.3]}
24. Nb3 {[%clk 0:02:12.1]} 24... f3 {[%clk 0:01:02.6]} 25. Qf1 {[%clk
0:01:47.6]} 25... Qg4 {[%clk 0:00:48.2]} 26. gxf3 {[%clk 0:00:58.2]} 26... Qxf3
{[%clk 0:00:49.1]} 27. Qg2 {[%clk 0:00:57.9]} 27... Qxb3 {[%clk 0:00:49]} 28.
Rd1 {[%clk 0:00:52.5]} 28... Qxb2 {[%clk 0:00:40.8]} 29. Qxd5+ {[%clk
0:00:49.7]} 29... e6 {[%clk 0:00:38.5]} 30. Ra2 {[%clk 0:00:50]} 30... Qxf2+
{[%clk 0:00:28.7]} 31. Rxf2 {[%clk 0:00:47.1]} 31... exd5 {[%clk 0:00:29.6]} 32.
Rb2 {[%clk 0:00:43.6]} 32... Rb8 {[%clk 0:00:26.3]} 33. Kg2 {[%clk 0:00:39.3]}
33... Ra6 {[%clk 0:00:26.6]} 34. Kf3 {[%clk 0:00:33]} 34... Rxa4 {[%clk
0:00:26.2]} 35. Kf4 {[%clk 0:00:33.3]} 35... b3 {[%clk 0:00:26]} 36. Kf5 {[%clk
0:00:31.8]} 36... Rxd4 {[%clk 0:00:25.5]} 0-1

[Event "*** Titled Tuesday Blitz"]
[Site "Chess.com"]
[Date "2020.05.19"]
[Round "9"]
[White "IMRosen"]
[Black "Ranindu2003"]
[Result "1-0"]
[WhiteElo "2593"]
[BlackElo "2451"]
[TimeControl "180+1"]
[EndTime "13:46:14 PDT"]
[Termination "IMRosen won by checkmate"]

1. d4 {[%clk 0:03:00.9]} 1... d5 {[%clk 0:02:59.5]} 2. Bf4 {[%clk 0:03:00.4]}
2... Nf6 {[%clk 0:02:59.2]} 3. e3 {[%clk 0:02:59.6]} 3... e6 {[%clk 0:02:59.8]}
4. Nd2 {[%clk 0:02:58.7]} 4... c5 {[%clk 0:03:00.2]} 5. Ngf3 {[%clk 0:02:57.1]}
5... Nc6 {[%clk 0:03:00.6]} 6. c3 {[%clk 0:02:57.3]} 6... cxd4 {[%clk 0:03:01]}
7. exd4 {[%clk 0:02:56.9]} 7... Nh5 {[%clk 0:03:01.6]} 8. Be3 {[%clk 0:02:56.8]}
8... Bd6 {[%clk 0:03:01.7]} 9. Ne5 {[%clk 0:02:49.2]} 9... g6 {[%clk 0:03:00.6]}
10. g4 {[%clk 0:02:48.7]} 10... Ng7 {[%clk 0:03:00.3]} 11. h4 {[%clk 0:02:49.2]}
11... h5 {[%clk 0:02:59.5]} 12. Bb5 {[%clk 0:01:45.1]} 12... Qc7 {[%clk
0:02:33.4]} 13. Ndf3 {[%clk 0:01:14.7]} 13... a6 {[%clk 0:02:06.3]} 14. Bxc6+
{[%clk 0:01:08.4]} 14... bxc6 {[%clk 0:02:07.2]} 15. Bg5 {[%clk 0:01:08.6]}
15... Be7 {[%clk 0:01:44.3]} 16. Qa4 {[%clk 0:01:01.2]} 16... Bb7 {[%clk
0:00:32.8]} 17. Bxe7 {[%clk 0:00:50.5]} 17... Kxe7 {[%clk 0:00:29.1]} 18. Ng5
{[%clk 0:00:45.9]} 18... Rhf8 {[%clk 0:00:22.6]} 19. Qb4+ {[%clk 0:00:38.1]}
19... Ke8 {[%clk 0:00:20.9]} 20. Nh7 {[%clk 0:00:37.5]} 20... Rh8 {[%clk
0:00:18.9]} 21. Nf6+ {[%clk 0:00:37.9]} 21... Kd8 {[%clk 0:00:18.9]} 22. f3
{[%clk 0:00:27]} 22... hxg4 {[%clk 0:00:18.5]} 23. fxg4 {[%clk 0:00:27.9]} 23...
a5 {[%clk 0:00:15.5]} 24. Qc5 {[%clk 0:00:27.2]} 24... Ne8 {[%clk 0:00:15.3]}
25. g5 {[%clk 0:00:23.2]} 25... Nxf6 {[%clk 0:00:15]} 26. gxf6 {[%clk
0:00:24.1]} 26... Rh5 {[%clk 0:00:09.9]} 27. O-O-O {[%clk 0:00:23.5]} 27... Ra6
{[%clk 0:00:09.5]} 28. Qf8# {[%clk 0:00:21.9]} 1-0

[Event "*** Titled Tuesday Blitz"]
[Site "Chess.com"]
[Date "2020.05.19"]
[Round "9"]
[White "14Sokol88"]
[Black "archess2"]
[Result "0-1"]
[WhiteElo "2390"]
[BlackElo "2289"]
[TimeControl "180+1"]
[EndTime "13:46:15 PDT"]
[Termination "archess2 won by checkmate"]

1. e4 {[%clk 0:02:23.7]} 1... c6 {[%clk 0:02:49.8]} 2. d4 {[%clk 0:02:22]} 2...
d5 {[%clk 0:02:50.1]} 3. Nc3 {[%clk 0:02:22.5]} 3... dxe4 {[%clk 0:02:50]} 4.
Nxe4 {[%clk 0:02:23.4]} 4... Bf5 {[%clk 0:02:50.2]} 5. Ng3 {[%clk 0:02:22.9]}
5... Bg6 {[%clk 0:02:50.3]} 6. Nf3 {[%clk 0:02:21.9]} 6... Nd7 {[%clk
0:02:50.4]} 7. h4 {[%clk 0:02:22]} 7... h6 {[%clk 0:02:49.9]} 8. Bd3 {[%clk
0:02:22.4]} 8... Bxd3 {[%clk 0:02:49.5]} 9. Qxd3 {[%clk 0:02:23.3]} 9... e6
{[%clk 0:02:49.9]} 10. Bf4 {[%clk 0:02:22.5]} 10... Qa5+ {[%clk 0:02:48.1]} 11.
Bd2 {[%clk 0:02:22.3]} 11... Qc7 {[%clk 0:02:48.1]} 12. O-O-O {[%clk 0:02:22.1]}
12... O-O-O {[%clk 0:02:47.4]} 13. Ne4 {[%clk 0:02:16.2]} 13... Ngf6 {[%clk
0:02:46.7]} 14. Kb1 {[%clk 0:02:11.9]} 14... Nxe4 {[%clk 0:02:46.6]} 15. Qxe4
{[%clk 0:02:12]} 15... Nf6 {[%clk 0:02:46.7]} 16. Qe2 {[%clk 0:02:11.2]} 16...
Bd6 {[%clk 0:02:46]} 17. g3 {[%clk 0:02:02.3]} 17... Rhe8 {[%clk 0:02:38.6]} 18.
c4 {[%clk 0:01:57.1]} 18... c5 {[%clk 0:02:32.5]} 19. dxc5 {[%clk 0:01:56.6]}
19... Bxc5 {[%clk 0:02:27.1]} 20. Bf4 {[%clk 0:01:55.5]} 20... Qb6 {[%clk
0:02:23.6]} 21. Ne5 {[%clk 0:01:22.1]} 21... Rxd1+ {[%clk 0:02:14.1]} 22. Rxd1
{[%clk 0:01:20.5]} 22... Re7 {[%clk 0:02:14]} 23. Nd3 {[%clk 0:01:13.5]} 23...
Bd4 {[%clk 0:02:13.5]} 24. c5 {[%clk 0:01:09.4]} 24... Qb5 {[%clk 0:02:13.2]}
25. c6 {[%clk 0:00:52.6]} 25... bxc6 {[%clk 0:02:03.4]} 26. Rc1 {[%clk 0:00:50]}
26... Nd5 {[%clk 0:02:02.1]} 27. Qe4 {[%clk 0:00:34.5]} 27... Nc3+ {[%clk
0:01:55.1]} 28. Rxc3 {[%clk 0:00:31.3]} 28... Bxc3 {[%clk 0:01:53]} 29. a4
{[%clk 0:00:26.6]} 29... Qb6 {[%clk 0:01:49]} 30. Be3 {[%clk 0:00:21.7]} 30...
Qb7 {[%clk 0:01:46.6]} 31. Qc4 {[%clk 0:00:19.6]} 31... Bf6 {[%clk 0:01:45.3]}
32. Bc1 {[%clk 0:00:15.7]} 32... Rc7 {[%clk 0:01:41.5]} 33. Nc5 {[%clk
0:00:15.3]} 33... Qb6 {[%clk 0:01:41.3]} 34. b3 {[%clk 0:00:12.4]} 34... Be7
{[%clk 0:01:40.9]} 35. Nd3 {[%clk 0:00:11.9]} 35... Rb7 {[%clk 0:01:39.9]} 36.
Kc2 {[%clk 0:00:10.7]} 36... a5 {[%clk 0:01:36.1]} 37. Be3 {[%clk 0:00:10.7]}
37... Qc7 {[%clk 0:01:35]} 38. Bd4 {[%clk 0:00:09.8]} 38... Bf6 {[%clk
0:01:33.6]} 39. Bxf6 {[%clk 0:00:07.4]} 39... gxf6 {[%clk 0:01:33.5]} 40. Nc5
{[%clk 0:00:07.9]} 40... Rb4 {[%clk 0:01:30.5]} 41. Qd3 {[%clk 0:00:06.5]} 41...
Qa7 {[%clk 0:01:25.2]} 42. Ne4 {[%clk 0:00:05.2]} 42... Qd4 {[%clk 0:01:21.8]}
43. Qa6+ {[%clk 0:00:04.8]} 43... Kd8 {[%clk 0:01:19.7]} 44. Qa8+ {[%clk
0:00:04.2]} 44... Ke7 {[%clk 0:01:18.6]} 45. Nc3 {[%clk 0:00:03.4]} 45... Qxf2+
{[%clk 0:01:17.7]} 46. Kd3 {[%clk 0:00:03.5]} 46... Rd4# {[%clk 0:01:17.5]} 0-1

[Event "*** Titled Tuesday Blitz"]
[Site "Chess.com"]
[Date "2020.05.19"]
[Round "9"]
[White "HouseOfDurin"]
[Black "DonBroca"]
[Result "0-1"]
[WhiteElo "1971"]
[BlackElo "2160"]
[TimeControl "180+1"]
[EndTime "13:46:17 PDT"]
[Termination "DonBroca won by checkmate"]

1. d4 {[%clk 0:03:00.9]} 1... Nf6 {[%clk 0:02:58.7]} 2. Bg5 {[%clk 0:03:01.3]}
2... c5 {[%clk 0:02:55.8]} 3. Bxf6 {[%clk 0:03:01.1]} 3... gxf6 {[%clk
0:02:55.2]} 4. c3 {[%clk 0:03:01.7]} 4... Qb6 {[%clk 0:02:52.2]} 5. Qd2 {[%clk
0:02:58.5]} 5... Nc6 {[%clk 0:02:49.5]} 6. e3 {[%clk 0:02:58.2]} 6... Bh6 {[%clk
0:02:48]} 7. a3 {[%clk 0:02:27.1]} 7... Rg8 {[%clk 0:02:45.5]} 8. g3 {[%clk
0:02:22.9]} 8... d5 {[%clk 0:02:35]} 9. Bg2 {[%clk 0:02:12.9]} 9... Be6 {[%clk
0:02:30]} 10. dxc5 {[%clk 0:01:59.6]} 10... Qxc5 {[%clk 0:02:27.9]} 11. Ne2
{[%clk 0:02:00.3]} 11... Ne5 {[%clk 0:02:11.8]} 12. Qc2 {[%clk 0:01:35.7]} 12...
O-O-O {[%clk 0:01:15]} 13. Nd2 {[%clk 0:01:32.5]} 13... Nc4 {[%clk 0:01:11.3]}
14. Nb3 {[%clk 0:01:06.9]} 14... Qb6 {[%clk 0:01:05]} 15. Ned4 {[%clk
0:01:00.3]} 15... Bxe3 {[%clk 0:00:58.6]} 16. fxe3 {[%clk 0:00:54.4]} 16... Nxe3
{[%clk 0:00:59.5]} 17. Qe2 {[%clk 0:00:45.3]} 17... Nxg2+ {[%clk 0:00:38.7]} 18.
Qxg2 {[%clk 0:00:46.2]} 18... Bd7 {[%clk 0:00:37.1]} 19. Nc1 {[%clk 0:00:23.5]}
19... e5 {[%clk 0:00:36.2]} 20. Nf3 {[%clk 0:00:21.8]} 20... Bc6 {[%clk
0:00:32.3]} 21. b4 {[%clk 0:00:14.3]} 21... d4 {[%clk 0:00:30.1]} 22. cxd4
{[%clk 0:00:13.1]} 22... Rxd4 {[%clk 0:00:29.3]} 23. Qf2 {[%clk 0:00:11.8]}
23... Bxf3 {[%clk 0:00:25.1]} 24. Qxf3 {[%clk 0:00:10.4]} 24... Rgd8 {[%clk
0:00:24.8]} 25. Ne2 {[%clk 0:00:09]} 25... Rd3 {[%clk 0:00:21.2]} 26. Rc1+
{[%clk 0:00:08.7]} 26... Kb8 {[%clk 0:00:19.7]} 27. Qf5 {[%clk 0:00:07.9]} 27...
Qe3 {[%clk 0:00:17.7]} 28. Rc2 {[%clk 0:00:05.7]} 28... Rd1# {[%clk 0:00:16.4]}
0-1

[Event "*** Titled Tuesday Blitz"]
[Site "Chess.com"]
[Date "2020.05.19"]
[Round "9"]
[White "cfjohansson"]
[Black "Jenia84"]
[Result "0-1"]
[WhiteElo "2328"]
[BlackElo "2248"]
[TimeControl "180+1"]
[EndTime "13:46:19 PDT"]
[Termination "Jenia84 won by resignation"]

1. d4 {[%clk 0:03:00.9]} 1... Nf6 {[%clk 0:02:58.7]} 2. c4 {[%clk 0:03:01]} 2...
e6 {[%clk 0:02:49.2]} 3. Nc3 {[%clk 0:03:01.1]} 3... Bb4 {[%clk 0:02:47.9]} 4.
f3 {[%clk 0:03:01.5]} 4... d5 {[%clk 0:02:42.1]} 5. a3 {[%clk 0:03:01.4]} 5...
Bxc3+ {[%clk 0:02:41]} 6. bxc3 {[%clk 0:03:02.3]} 6... c5 {[%clk 0:02:38.3]} 7.
cxd5 {[%clk 0:03:01.6]} 7... Nxd5 {[%clk 0:02:37.6]} 8. dxc5 {[%clk 0:03:01.5]}
8... f5 {[%clk 0:02:32.1]} 9. e4 {[%clk 0:03:00.9]} 9... fxe4 {[%clk 0:02:30.8]}
10. Qc2 {[%clk 0:03:01.4]} 10... Qa5 {[%clk 0:02:20.6]} 11. fxe4 {[%clk
0:02:49.6]} 11... Qxc3+ {[%clk 0:02:07.1]} 12. Qxc3 {[%clk 0:02:47.6]} 12...
Nxc3 {[%clk 0:02:07.6]} 13. Bb2 {[%clk 0:02:32]} 13... Nxe4 {[%clk 0:02:05.6]}
14. Bxg7 {[%clk 0:02:27.6]} 14... Rg8 {[%clk 0:02:06]} 15. Bd4 {[%clk 0:02:26]}
15... Nc6 {[%clk 0:02:04.8]} 16. Be3 {[%clk 0:02:09.9]} 16... e5 {[%clk
0:01:58.2]} 17. Bd3 {[%clk 0:01:54]} 17... Nf6 {[%clk 0:01:54.9]} 18. O-O-O
{[%clk 0:01:42.8]} 18... Be6 {[%clk 0:01:50.7]} 19. Nf3 {[%clk 0:01:37.4]} 19...
e4 {[%clk 0:01:43.2]} 20. Ng5 {[%clk 0:01:36.7]} 20... Bb3 {[%clk 0:00:53.9]}
21. Bc2 {[%clk 0:01:26.6]} 21... Bxc2 {[%clk 0:00:52.2]} 22. Kxc2 {[%clk
0:01:27.5]} 22... h6 {[%clk 0:00:52.3]} 23. Nxe4 {[%clk 0:00:52.8]} 23... Nxe4
{[%clk 0:00:48.5]} 24. Rhe1 {[%clk 0:00:52.2]} 24... Rxg2+ {[%clk 0:00:17.7]}
25. Bd2 {[%clk 0:00:31.8]} 25... O-O-O {[%clk 0:00:17.1]} 26. Rxe4 {[%clk
0:00:31.4]} 26... Nd4+ {[%clk 0:00:16.6]} 27. Kc3 {[%clk 0:00:23.2]} 27... Nf3
{[%clk 0:00:14.7]} 28. Rf1 {[%clk 0:00:14.3]} 28... Nxd2 {[%clk 0:00:14]} 0-1

[Event "*** Titled Tuesday Blitz"]
[Site "Chess.com"]
[Date "2020.05.19"]
[Round "9"]
[White "dianosky"]
[Black "elohunter1999"]
[Result "1-0"]
[WhiteElo "2399"]
[BlackElo "2523"]
[TimeControl "180+1"]
[EndTime "13:46:20 PDT"]
[Termination "dianosky won by resignation"]

1. d4 {[%clk 0:03:00.9]} 1... Nf6 {[%clk 0:02:58.8]} 2. c4 {[%clk 0:03:01.1]}
2... g6 {[%clk 0:02:58.2]} 3. Nc3 {[%clk 0:03:01.2]} 3... d5 {[%clk 0:02:58.4]}
4. Bg5 {[%clk 0:03:01.4]} 4... Ne4 {[%clk 0:02:56.5]} 5. Nxe4 {[%clk 0:03:01.6]}
5... dxe4 {[%clk 0:02:55.1]} 6. Qd2 {[%clk 0:03:02.5]} 6... Bg7 {[%clk
0:02:53.7]} 7. e3 {[%clk 0:03:03.1]} 7... c5 {[%clk 0:02:53.6]} 8. d5 {[%clk
0:03:03.7]} 8... Nd7 {[%clk 0:02:51.6]} 9. Ne2 {[%clk 0:02:57.2]} 9... Ne5
{[%clk 0:02:51.3]} 10. Nc3 {[%clk 0:02:56.9]} 10... Bf5 {[%clk 0:02:51.2]} 11.
h3 {[%clk 0:02:54.9]} 11... h5 {[%clk 0:02:49.7]} 12. Be2 {[%clk 0:02:48.9]}
12... Qd7 {[%clk 0:02:48.1]} 13. O-O-O {[%clk 0:02:38.8]} 13... O-O-O {[%clk
0:02:46.8]} 14. f3 {[%clk 0:02:22.4]} 14... exf3 {[%clk 0:02:42.6]} 15. gxf3
{[%clk 0:02:22.7]} 15... Bxh3 {[%clk 0:01:59.8]} 16. f4 {[%clk 0:02:18.7]} 16...
Bg4 {[%clk 0:01:41]} 17. fxe5 {[%clk 0:02:14.8]} 17... Bxe5 {[%clk 0:01:41.9]}
18. Bxg4 {[%clk 0:02:11.7]} 18... hxg4 {[%clk 0:01:38]} 19. Rxh8 {[%clk
0:01:29.1]} 19... Rxh8 {[%clk 0:01:38.9]} 20. Qf2 {[%clk 0:01:22.7]} 20... f6
{[%clk 0:01:31.6]} 21. Bf4 {[%clk 0:01:22.8]} 21... Bxc3 {[%clk 0:01:14.5]} 22.
bxc3 {[%clk 0:01:21.7]} 22... Qa4 {[%clk 0:01:14.4]} 23. d6 {[%clk 0:01:15.4]}
23... e5 {[%clk 0:00:58.5]} 24. d7+ {[%clk 0:01:15.5]} 24... Kc7 {[%clk
0:00:52.1]} 25. Bxe5+ {[%clk 0:01:13.5]} 25... fxe5 {[%clk 0:00:52.1]} 26. Qf6
{[%clk 0:01:12.6]} 26... Qxd1+ {[%clk 0:00:19.3]} 27. Kxd1 {[%clk 0:01:11.1]}
27... Rd8 {[%clk 0:00:20.2]} 28. Qxe5+ {[%clk 0:01:08.5]} 28... Kc6 {[%clk
0:00:20.3]} 29. Qe6+ {[%clk 0:01:04.5]} 29... Kc7 {[%clk 0:00:20.3]} 30. Qxg6
{[%clk 0:01:01.5]} 30... Rxd7+ {[%clk 0:00:21.2]} 31. Kc2 {[%clk 0:01:01.6]}
31... b6 {[%clk 0:00:15.6]} 32. Qxg4 {[%clk 0:01:01.3]} 32... Re7 {[%clk
0:00:14.9]} 33. Qf5 {[%clk 0:00:58.4]} 33... Kd6 {[%clk 0:00:14.6]} 34. e4
{[%clk 0:00:58.4]} 34... Re5 {[%clk 0:00:09.9]} 35. Qf8+ {[%clk 0:00:56.8]}
35... Re7 {[%clk 0:00:08.7]} 36. e5+ {[%clk 0:00:55.2]} 36... Kd7 {[%clk
0:00:09.2]} 37. Qf6 {[%clk 0:00:50.3]} 37... Re6 {[%clk 0:00:08.9]} 38. Qf7+
{[%clk 0:00:50.6]} 38... Re7 {[%clk 0:00:09.8]} 39. Qd5+ {[%clk 0:00:50.9]}
39... Kc7 {[%clk 0:00:09.6]} 40. Qd6+ {[%clk 0:00:50.6]} 1-0

[Event "*** Titled Tuesday Blitz"]
[Site "Chess.com"]
[Date "2020.05.19"]
[Round "9"]
[White "PotapovaM"]
[Black "stolencandy13"]
[Result "0-1"]
[WhiteElo "2422"]
[BlackElo "2558"]
[TimeControl "180+1"]
[EndTime "13:46:25 PDT"]
[Termination "stolencandy13 won by checkmate"]

1. d4 {[%clk 0:03:00.9]} 1... Nf6 {[%clk 0:02:59.1]} 2. c4 {[%clk 0:03:00.1]}
2... c5 {[%clk 0:02:59.3]} 3. d5 {[%clk 0:02:59.9]} 3... e6 {[%clk 0:02:59.8]}
4. Nc3 {[%clk 0:02:59.5]} 4... exd5 {[%clk 0:03:00.7]} 5. cxd5 {[%clk
0:03:00.4]} 5... d6 {[%clk 0:03:00]} 6. Nf3 {[%clk 0:03:00.6]} 6... g6 {[%clk
0:02:58.7]} 7. Bf4 {[%clk 0:03:01.2]} 7... a6 {[%clk 0:02:56.5]} 8. a4 {[%clk
0:03:01.1]} 8... Bg7 {[%clk 0:02:43.1]} 9. h3 {[%clk 0:03:01.3]} 9... O-O {[%clk
0:02:41]} 10. e3 {[%clk 0:03:01.8]} 10... Qe7 {[%clk 0:02:36.9]} 11. Be2 {[%clk
0:02:57.2]} 11... Nbd7 {[%clk 0:02:33.4]} 12. O-O {[%clk 0:02:57.2]} 12... Ne8
{[%clk 0:02:30.1]} 13. Qb3 {[%clk 0:02:56.6]} 13... Rb8 {[%clk 0:02:26.3]} 14.
a5 {[%clk 0:02:51.1]} 14... h6 {[%clk 0:02:24.6]} 15. Bh2 {[%clk 0:02:45.9]}
15... f5 {[%clk 0:02:21.8]} 16. Nd2 {[%clk 0:02:44.6]} 16... g5 {[%clk
0:02:15.6]} 17. Nc4 {[%clk 0:02:37.2]} 17... f4 {[%clk 0:02:10.6]} 18. Bg4
{[%clk 0:02:30.1]} 18... Ne5 {[%clk 0:02:07.9]} 19. Bxc8 {[%clk 0:02:27.4]}
19... Rxc8 {[%clk 0:02:05.1]} 20. exf4 {[%clk 0:01:45.9]} 20... gxf4 {[%clk
0:02:06]} 21. Rae1 {[%clk 0:01:45.5]} 21... Qf7 {[%clk 0:01:59]} 22. Re4 {[%clk
0:01:29.2]} 22... f3 {[%clk 0:01:58.4]} 23. g4 {[%clk 0:01:18.6]} 23... Nxc4
{[%clk 0:01:54]} 24. Qxc4 {[%clk 0:01:15.4]} 24... Qg6 {[%clk 0:01:49.7]} 25.
Re6 {[%clk 0:01:12.8]} 25... Qc2 {[%clk 0:01:43]} 26. Bxd6 {[%clk 0:00:47.2]}
26... Nxd6 {[%clk 0:01:37.8]} 27. Rxd6 {[%clk 0:00:48.1]} 27... Be5 {[%clk
0:01:29.6]} 28. Rxh6 {[%clk 0:00:44.2]} 28... Rf4 {[%clk 0:01:25.5]} 29. Qa2
{[%clk 0:00:34.6]} 29... Bxc3 {[%clk 0:01:25.1]} 30. d6+ {[%clk 0:00:33.3]}
30... c4 {[%clk 0:01:22.9]} 31. Qa3 {[%clk 0:00:16.3]} 31... Qxb2 {[%clk
0:01:15.7]} 32. d7 {[%clk 0:00:16.5]} 32... Qxa3 {[%clk 0:01:09.1]} 33. dxc8=Q+
{[%clk 0:00:16.3]} 33... Qf8 {[%clk 0:01:09.7]} 34. Rg6+ {[%clk 0:00:14.6]}
34... Kh7 {[%clk 0:01:05.9]} 35. Qe6 {[%clk 0:00:09.7]} 35... Bf6 {[%clk
0:01:02.5]} 36. Rxf6 {[%clk 0:00:02.7]} 36... Qxf6 {[%clk 0:01:02.1]} 37. Qd7+
{[%clk 0:00:02.9]} 37... Qg7 {[%clk 0:00:59.2]} 38. Qd5 {[%clk 0:00:02.7]} 38...
Rxg4+ {[%clk 0:00:56.3]} 39. Kh1 {[%clk 0:00:01.6]} 39... Rf4 {[%clk 0:00:51.5]}
40. Qh5+ {[%clk 0:00:01.8]} 40... Qh6 {[%clk 0:00:48.4]} 41. Qd5 {[%clk
0:00:01.6]} 41... Qxh3+ {[%clk 0:00:47.5]} 42. Kg1 {[%clk 0:00:02.1]} 42... Rg4#
{[%clk 0:00:47.6]} 0-1

[Event "*** Titled Tuesday Blitz"]
[Site "Chess.com"]
[Date "2020.05.19"]
[Round "9"]
[White "InitiatingASC"]
[Black "2L8IWUN"]
[Result "0-1"]
[WhiteElo "2372"]
[BlackElo "2543"]
[TimeControl "180+1"]
[EndTime "13:46:26 PDT"]
[Termination "2L8IWUN won by resignation"]

1. Nf3 {[%clk 0:03:00.9]} 1... d5 {[%clk 0:02:57.7]} 2. b3 {[%clk 0:03:01.6]}
2... Nf6 {[%clk 0:02:56.8]} 3. Bb2 {[%clk 0:03:02.3]} 3... g6 {[%clk 0:02:56.7]}
4. e3 {[%clk 0:03:02.9]} 4... Bg7 {[%clk 0:02:56.6]} 5. c4 {[%clk 0:03:03.6]}
5... O-O {[%clk 0:02:56.6]} 6. cxd5 {[%clk 0:03:03.9]} 6... Nxd5 {[%clk
0:02:57.5]} 7. Bxg7 {[%clk 0:03:01.9]} 7... Kxg7 {[%clk 0:02:58.4]} 8. Be2
{[%clk 0:02:58.9]} 8... c5 {[%clk 0:02:53.8]} 9. O-O {[%clk 0:02:58]} 9... Nc6
{[%clk 0:02:53.4]} 10. Nc3 {[%clk 0:02:57]} 10... Bg4 {[%clk 0:02:51.1]} 11. Qc2
{[%clk 0:02:50.8]} 11... Kg8 {[%clk 0:02:41.6]} 12. a3 {[%clk 0:02:50.7]} 12...
Rc8 {[%clk 0:02:40.7]} 13. Rac1 {[%clk 0:02:48.4]} 13... a6 {[%clk 0:02:31.8]}
14. Rfd1 {[%clk 0:02:44.8]} 14... e5 {[%clk 0:02:01.2]} 15. Ne4 {[%clk 0:02:34]}
15... b6 {[%clk 0:01:55.9]} 16. Bxa6 {[%clk 0:02:31.3]} 16... Bxf3 {[%clk
0:01:21.7]} 17. gxf3 {[%clk 0:02:26.4]} 17... Rc7 {[%clk 0:01:21.5]} 18. Qd3
{[%clk 0:02:16.5]} 18... Kg7 {[%clk 0:01:15.5]} 19. Bc4 {[%clk 0:02:14.3]} 19...
Rd7 {[%clk 0:01:12.9]} 20. Qf1 {[%clk 0:02:02.1]} 20... f5 {[%clk 0:01:10.5]}
21. Nc3 {[%clk 0:01:59.5]} 21... Nc7 {[%clk 0:01:07.9]} 22. Nb5 {[%clk
0:01:56.5]} 22... Na5 {[%clk 0:01:02.2]} 23. Nxc7 {[%clk 0:01:54.8]} 23... Rxc7
{[%clk 0:01:02.4]} 24. b4 {[%clk 0:01:42.2]} 24... cxb4 {[%clk 0:01:01.3]} 25.
axb4 {[%clk 0:01:42.1]} 25... Nxc4 {[%clk 0:00:57.7]} 26. Rxc4 {[%clk 0:01:43]}
26... Rff7 {[%clk 0:00:55.2]} 27. d3 {[%clk 0:01:28.2]} 27... Rfd7 {[%clk
0:00:48.6]} 28. Rdc1 {[%clk 0:01:23.1]} 28... Ra7 {[%clk 0:00:45.5]} 29. R1c3
{[%clk 0:01:13.9]} 29... Ra4 {[%clk 0:00:39]} 30. f4 {[%clk 0:00:53.1]} 30... b5
{[%clk 0:00:36.3]} 31. Rc8 {[%clk 0:00:48.3]} 31... Qe7 {[%clk 0:00:31.4]} 32.
fxe5 {[%clk 0:00:42.4]} 32... Qxe5 {[%clk 0:00:32.3]} 33. Qb1 {[%clk 0:00:34.5]}
33... f4 {[%clk 0:00:28.9]} 34. R8c5 {[%clk 0:00:23.3]} 34... Qe6 {[%clk
0:00:26]} 35. Qd1 {[%clk 0:00:18.4]} 35... fxe3 {[%clk 0:00:24]} 36. Qe2 {[%clk
0:00:14.9]} 36... exf2+ {[%clk 0:00:22.1]} 37. Kxf2 {[%clk 0:00:13]} 37... Rf7+
{[%clk 0:00:22.4]} 0-1